[Event "*** SCC Grand Prix: Titled Tuesday Blitz"]
[Site "Chess.com"]
[Date "2020.08.11"]
[Round "10"]
[White "The_Machine04"]
[Black "Artyom_ChessMate"]
[Result "0-1"]
[WhiteElo "2290"]
[BlackElo "2567"]
[TimeControl "180+1"]
[EndTime "11:57:27 PDT"]
[Termination "Artyom_ChessMate won on time"]

1. d4 {[%clk 0:03:00.9]} 1... d5 {[%clk 0:02:58.2]} 2. Bf4 {[%clk 0:02:56.4]}
2... Nf6 {[%clk 0:02:57.9]} 3. e3 {[%clk 0:02:56.3]} 3... c5 {[%clk 0:02:58.1]}
4. c3 {[%clk 0:02:56.3]} 4... Qb6 {[%clk 0:02:56.4]} 5. Qb3 {[%clk 0:02:54.8]}
5... c4 {[%clk 0:02:36]} 6. Qc2 {[%clk 0:02:52.6]} 6... Nc6 {[%clk 0:02:32]} 7.
Nd2 {[%clk 0:02:48.8]} 7... Nh5 {[%clk 0:02:29.2]} 8. Be5 {[%clk 0:02:41.7]}
8... f6 {[%clk 0:02:18]} 9. Bg3 {[%clk 0:02:39]} 9... Nxg3 {[%clk 0:02:15.2]}
10. hxg3 {[%clk 0:02:39.9]} 10... g6 {[%clk 0:02:15.6]} 11. e4 {[%clk
0:02:23.9]} 11... e6 {[%clk 0:02:12.5]} 12. f4 {[%clk 0:02:04.5]} 12... Bg7
{[%clk 0:02:10.1]} 13. e5 {[%clk 0:02:03.8]} 13... fxe5 {[%clk 0:02:06.7]} 14.
fxe5 {[%clk 0:02:02.5]} 14... O-O {[%clk 0:02:06.4]} 15. Ngf3 {[%clk 0:02:01.5]}
15... Ne7 {[%clk 0:01:42.9]} 16. g4 {[%clk 0:01:30.4]} 16... Bd7 {[%clk
0:01:37.4]} 17. Be2 {[%clk 0:01:14]} 17... Rf4 {[%clk 0:01:34.5]} 18. g5 {[%clk
0:00:37]} 18... Nf5 {[%clk 0:01:27.1]} 19. Nf1 {[%clk 0:00:36.1]} 19... Rf8
{[%clk 0:00:54.9]} 20. g3 {[%clk 0:00:20.1]} 20... Re4 {[%clk 0:00:53.3]} 21.
N3d2 {[%clk 0:00:19.8]} 21... Ne3 {[%clk 0:00:49.3]} 22. Nxe3 {[%clk 0:00:18.3]}
22... Rxe3 {[%clk 0:00:50.2]} 23. Nf1 {[%clk 0:00:13.8]} 23... Re4 {[%clk
0:00:38.9]} 24. O-O-O {[%clk 0:00:12.4]} 24... Rf2 {[%clk 0:00:37.9]} 25. Rd2
{[%clk 0:00:10.8]} 25... Qd8 {[%clk 0:00:26.5]} 26. Bd1 {[%clk 0:00:05.6]} 26...
Rf7 {[%clk 0:00:23.2]} 27. Kb1 {[%clk 0:00:02.2]} 27... Qf8 {[%clk 0:00:22.9]}
0-1

[Event "*** SCC Grand Prix: Titled Tuesday Blitz"]
[Site "Chess.com"]
[Date "2020.08.11"]
[Round "10"]
[White "AttilaTurzo"]
[Black "Duong57"]
[Result "1-0"]
[WhiteElo "2443"]
[BlackElo "2328"]
[TimeControl "180+1"]
[EndTime "11:57:31 PDT"]
[Termination "AttilaTurzo won on time"]

1. e4 {[%clk 0:03:00.9]} 1... c5 {[%clk 0:02:59.5]} 2. Nf3 {[%clk 0:03:00.9]}
2... d6 {[%clk 0:02:59.6]} 3. d4 {[%clk 0:03:01.8]} 3... cxd4 {[%clk 0:03:00.4]}
4. Nxd4 {[%clk 0:03:02.7]} 4... Nf6 {[%clk 0:03:00.9]} 5. Nc3 {[%clk 0:03:03.3]}
5... a6 {[%clk 0:03:01.4]} 6. Bg5 {[%clk 0:03:03.8]} 6... e6 {[%clk 0:03:01.7]}
7. f4 {[%clk 0:03:04.2]} 7... Nbd7 {[%clk 0:02:57.1]} 8. Qf3 {[%clk 0:03:04]}
8... Qc7 {[%clk 0:02:56.3]} 9. O-O-O {[%clk 0:03:03.9]} 9... Be7 {[%clk
0:02:56.6]} 10. g4 {[%clk 0:03:02.6]} 10... b5 {[%clk 0:02:33.6]} 11. Bxf6
{[%clk 0:02:55]} 11... Nxf6 {[%clk 0:02:33.1]} 12. g5 {[%clk 0:02:55.4]} 12...
Nd7 {[%clk 0:02:33.2]} 13. a3 {[%clk 0:02:52.4]} 13... Bb7 {[%clk 0:01:27.7]}
14. Kb1 {[%clk 0:02:47.6]} 14... O-O-O {[%clk 0:01:22.9]} 15. h4 {[%clk
0:02:45]} 15... Kb8 {[%clk 0:01:22.7]} 16. Rg1 {[%clk 0:02:27.9]} 16... Rc8
{[%clk 0:01:19.3]} 17. f5 {[%clk 0:02:24.7]} 17... e5 {[%clk 0:01:07.4]} 18. Nb3
{[%clk 0:02:15.6]} 18... Rhd8 {[%clk 0:00:54]} 19. Rg2 {[%clk 0:02:12.7]} 19...
Nc5 {[%clk 0:00:53.3]} 20. Nd5 {[%clk 0:02:09.7]} 20... Bxd5 {[%clk 0:00:50.3]}
21. Rxd5 {[%clk 0:02:10.6]} 21... Nd7 {[%clk 0:00:46.4]} 22. Rd1 {[%clk
0:01:43.9]} 22... f6 {[%clk 0:00:45.4]} 23. g6 {[%clk 0:01:39]} 23... h6 {[%clk
0:00:45.3]} 24. c3 {[%clk 0:01:32.5]} 24... Nb6 {[%clk 0:00:36.9]} 25. Rgd2
{[%clk 0:01:30.4]} 25... Rd7 {[%clk 0:00:30.9]} 26. Na1 {[%clk 0:01:27.3]} 26...
Bd8 {[%clk 0:00:29.8]} 27. Nc2 {[%clk 0:01:27.2]} 27... Qb7 {[%clk 0:00:25.7]}
28. Nb4 {[%clk 0:01:22.6]} 28... Rc5 {[%clk 0:00:19.3]} 29. Rxd6 {[%clk
0:01:15.2]} 29... Rxd6 {[%clk 0:00:18.6]} 30. Rxd6 {[%clk 0:01:16.1]} 30... Be7
{[%clk 0:00:18.5]} 31. Rd1 {[%clk 0:01:07.4]} 31... a5 {[%clk 0:00:16.9]} 32.
Nd5 {[%clk 0:01:02.8]} 32... Nxd5 {[%clk 0:00:17]} 33. Rxd5 {[%clk 0:00:59.5]}
33... Rxd5 {[%clk 0:00:17]} 34. exd5 {[%clk 0:01:00.4]} 34... Bd6 {[%clk
0:00:15.8]} 35. Kc2 {[%clk 0:00:55.9]} 35... b4 {[%clk 0:00:15.8]} 36. axb4
{[%clk 0:00:53.3]} 36... axb4 {[%clk 0:00:16.2]} 37. Qd3 {[%clk 0:00:51.8]}
37... bxc3 {[%clk 0:00:09.8]} 38. bxc3 {[%clk 0:00:46.7]} 38... Qa7 {[%clk
0:00:09.4]} 39. Qb5+ {[%clk 0:00:45.9]} 39... Kc8 {[%clk 0:00:05.1]} 40. Qe8+
{[%clk 0:00:44.1]} 1-0

[Event "*** SCC Grand Prix: Titled Tuesday Blitz"]
[Site "Chess.com"]
[Date "2020.08.11"]
[Round "10"]
[White "Mbneu"]
[Black "Sesleria"]
[Result "0-1"]
[WhiteElo "2217"]
[BlackElo "1988"]
[TimeControl "180+1"]
[EndTime "11:57:32 PDT"]
[Termination "Sesleria won by resignation"]

1. d4 {[%clk 0:03:00.9]} 1... Nf6 {[%clk 0:02:58.4]} 2. c4 {[%clk 0:03:01.2]}
2... e6 {[%clk 0:02:56.2]} 3. Nc3 {[%clk 0:03:01.5]} 3... Bb4 {[%clk 0:02:55.7]}
4. Bg5 {[%clk 0:03:02]} 4... c5 {[%clk 0:02:55.2]} 5. d5 {[%clk 0:03:01.4]} 5...
exd5 {[%clk 0:02:55.5]} 6. cxd5 {[%clk 0:03:01.2]} 6... d6 {[%clk 0:02:54.3]} 7.
e3 {[%clk 0:02:58.5]} 7... Qe7 {[%clk 0:02:54]} 8. Nf3 {[%clk 0:02:54.7]} 8...
Nbd7 {[%clk 0:02:49.1]} 9. Bd3 {[%clk 0:02:53.1]} 9... Ne5 {[%clk 0:02:48.2]}
10. O-O {[%clk 0:02:46.9]} 10... Nxd3 {[%clk 0:02:45.7]} 11. Qxd3 {[%clk
0:02:45]} 11... Bg4 {[%clk 0:02:42.3]} 12. Nd2 {[%clk 0:02:44.2]} 12... O-O
{[%clk 0:02:37.9]} 13. Nde4 {[%clk 0:02:27.2]} 13... Bxc3 {[%clk 0:02:36.3]} 14.
bxc3 {[%clk 0:02:21.6]} 14... Qxe4 {[%clk 0:02:32]} 15. Qb5 {[%clk 0:02:03.1]}
15... Qxd5 {[%clk 0:02:21.2]} 16. Bxf6 {[%clk 0:02:00.5]} 16... gxf6 {[%clk
0:02:20.6]} 17. f3 {[%clk 0:02:01]} 17... Be6 {[%clk 0:02:16.5]} 18. e4 {[%clk
0:01:59.2]} 18... Qc6 {[%clk 0:02:00]} 19. Qe2 {[%clk 0:01:57.7]} 19... Rfe8
{[%clk 0:01:53.8]} 20. Qf2 {[%clk 0:01:46.3]} 20... Bc4 {[%clk 0:01:34.8]} 21.
Rfd1 {[%clk 0:01:43.8]} 21... Re6 {[%clk 0:01:26.9]} 22. h4 {[%clk 0:01:18.3]}
22... Kh8 {[%clk 0:01:15.6]} 23. h5 {[%clk 0:01:13.6]} 23... Rg8 {[%clk
0:01:09.3]} 24. Qh4 {[%clk 0:00:57.7]} 24... Be2 {[%clk 0:00:47.8]} 25. Rd2
{[%clk 0:00:51.7]} 25... Bxf3 {[%clk 0:00:47.7]} 26. Rf1 {[%clk 0:00:45.6]}
26... Qxe4 {[%clk 0:00:44.7]} 27. Qh3 {[%clk 0:00:16.6]} 27... Qe3+ {[%clk
0:00:36.3]} 28. Rdf2 {[%clk 0:00:15.8]} 28... Rxg2+ {[%clk 0:00:34.2]} 29. Qxg2
{[%clk 0:00:16]} 29... Bxg2 {[%clk 0:00:34.1]} 30. Kxg2 {[%clk 0:00:16.6]} 30...
Qg5+ {[%clk 0:00:31.5]} 31. Kh1 {[%clk 0:00:15.6]} 31... Qxh5+ {[%clk
0:00:28.3]} 32. Rh2 {[%clk 0:00:15.6]} 32... Qd5+ {[%clk 0:00:28.3]} 33. Kg1
{[%clk 0:00:14.4]} 33... Re5 {[%clk 0:00:25.3]} 34. Rxf6 {[%clk 0:00:13.8]}
34... Rg5+ {[%clk 0:00:25.1]} 35. Kf2 {[%clk 0:00:13.6]} 35... Qd2+ {[%clk
0:00:22.5]} 36. Kf3 {[%clk 0:00:13.3]} 36... Qxh2 {[%clk 0:00:19]} 0-1

[Event "*** SCC Grand Prix: Titled Tuesday Blitz"]
[Site "Chess.com"]
[Date "2020.08.11"]
[Round "10"]
[White "slavenok"]
[Black "Meri-Arabidze"]
[Result "1-0"]
[WhiteElo "2725"]
[BlackElo "2601"]
[TimeControl "180+1"]
[EndTime "11:57:33 PDT"]
[Termination "slavenok won on time"]

1. e4 {[%clk 0:03:00.8]} 1... e5 {[%clk 0:02:59.5]} 2. d4 {[%clk 0:02:54.2]}
2... exd4 {[%clk 0:02:58.9]} 3. Nf3 {[%clk 0:02:53.3]} 3... Nc6 {[%clk
0:02:58.6]} 4. Bc4 {[%clk 0:02:49.9]} 4... Nf6 {[%clk 0:02:58.2]} 5. Qe2 {[%clk
0:02:43.6]} 5... d6 {[%clk 0:02:51.3]} 6. O-O {[%clk 0:02:42.3]} 6... Bg4 {[%clk
0:02:45.1]} 7. h3 {[%clk 0:02:41.7]} 7... Bxf3 {[%clk 0:02:44.5]} 8. Qxf3 {[%clk
0:02:41]} 8... Ne5 {[%clk 0:02:41.5]} 9. Qb3 {[%clk 0:02:27.4]} 9... Nxc4 {[%clk
0:02:30.4]} 10. Qxc4 {[%clk 0:02:28.3]} 10... c5 {[%clk 0:02:28.1]} 11. Re1
{[%clk 0:02:25.7]} 11... Be7 {[%clk 0:02:27.5]} 12. c3 {[%clk 0:02:23.5]} 12...
dxc3 {[%clk 0:02:19]} 13. Nxc3 {[%clk 0:02:24.4]} 13... O-O {[%clk 0:02:19.4]}
14. Bf4 {[%clk 0:02:21.2]} 14... a6 {[%clk 0:02:14.1]} 15. Rad1 {[%clk
0:02:18.2]} 15... b5 {[%clk 0:02:14.2]} 16. Qb3 {[%clk 0:02:13]} 16... c4 {[%clk
0:02:14.5]} 17. Qc2 {[%clk 0:02:11]} 17... Qb6 {[%clk 0:02:09.6]} 18. Be3 {[%clk
0:02:07.4]} 18... Qb7 {[%clk 0:02:08.8]} 19. Bd4 {[%clk 0:02:07.3]} 19... Rfe8
{[%clk 0:02:06.7]} 20. Bxf6 {[%clk 0:02:03.6]} 20... Bxf6 {[%clk 0:02:06.7]} 21.
Nd5 {[%clk 0:02:04.5]} 21... Bg5 {[%clk 0:01:57.5]} 22. f4 {[%clk 0:01:57.8]}
22... Bh4 {[%clk 0:01:57.5]} 23. Re2 {[%clk 0:01:55.5]} 23... Rac8 {[%clk
0:01:57.3]} 24. Rf1 {[%clk 0:01:50.8]} 24... b4 {[%clk 0:01:54.5]} 25. Kh2
{[%clk 0:01:48.4]} 25... b3 {[%clk 0:01:54.1]} 26. axb3 {[%clk 0:01:45.5]} 26...
Qxb3 {[%clk 0:01:50.4]} 27. Qc1 {[%clk 0:01:45]} 27... Qg3+ {[%clk 0:01:24.7]}
28. Kh1 {[%clk 0:01:40]} 28... Qd3 {[%clk 0:01:25.6]} 29. Re3 {[%clk 0:01:36.9]}
29... Qd4 {[%clk 0:01:25.3]} 30. Rd1 {[%clk 0:01:36.8]} 30... Qc5 {[%clk
0:01:24.8]} 31. Qd2 {[%clk 0:01:34.4]} 31... h6 {[%clk 0:01:16.4]} 32. Kh2
{[%clk 0:01:34.1]} 32... Rb8 {[%clk 0:01:12.1]} 33. Qe2 {[%clk 0:01:34]} 33...
Rb3 {[%clk 0:01:08.6]} 34. Rxb3 {[%clk 0:01:30.4]} 34... cxb3 {[%clk 0:01:09.5]}
35. Qg4 {[%clk 0:01:30.8]} 35... Qf2 {[%clk 0:01:00.8]} 36. Rd3 {[%clk
0:01:27.1]} 36... Qe1 {[%clk 0:00:50.7]} 37. Re3 {[%clk 0:01:23.9]} 37... Qf2
{[%clk 0:00:44.5]} 38. Rxb3 {[%clk 0:01:23.5]} 38... g6 {[%clk 0:00:29.5]} 39.
Rf3 {[%clk 0:01:20.8]} 39... Qe1 {[%clk 0:00:28.5]} 40. Re3 {[%clk 0:01:21]}
40... Qf2 {[%clk 0:00:28.8]} 41. f5 {[%clk 0:01:16.3]} 41... Bg5 {[%clk
0:00:22]} 42. Rf3 {[%clk 0:01:13.3]} 42... Qe1 {[%clk 0:00:20.5]} 43. fxg6
{[%clk 0:01:10.4]} 43... fxg6 {[%clk 0:00:13.6]} 44. Nf6+ {[%clk 0:01:09.4]}
44... Bxf6 {[%clk 0:00:04.7]} 45. Qxg6+ {[%clk 0:01:10.3]} 45... Bg7 {[%clk
0:00:05]} 46. Qxe8+ {[%clk 0:01:04]} 46... Kh7 {[%clk 0:00:05.9]} 47. Rg3 {[%clk
0:01:01.4]} 1-0

[Event "*** SCC Grand Prix: Titled Tuesday Blitz"]
[Site "Chess.com"]
[Date "2020.08.11"]
[Round "10"]
[White "laboratorio25"]
[Black "Keures"]
[Result "0-1"]
[WhiteElo "2415"]
[BlackElo "2323"]
[TimeControl "180+1"]
[EndTime "11:57:34 PDT"]
[Termination "Keures won by resignation"]

1. e4 {[%clk 0:03:00.9]} 1... e6 {[%clk 0:02:54.9]} 2. d4 {[%clk 0:03:00.2]}
2... d5 {[%clk 0:02:54.7]} 3. e5 {[%clk 0:03:00.8]} 3... c5 {[%clk 0:02:53.5]}
4. c3 {[%clk 0:03:01.2]} 4... Nc6 {[%clk 0:02:50.1]} 5. Nf3 {[%clk 0:03:00.2]}
5... Qb6 {[%clk 0:02:45.9]} 6. a3 {[%clk 0:02:59.9]} 6... c4 {[%clk 0:02:44.5]}
7. Nbd2 {[%clk 0:02:59.8]} 7... Na5 {[%clk 0:02:44.4]} 8. Rb1 {[%clk 0:03:00.5]}
8... Bd7 {[%clk 0:02:43.3]} 9. h4 {[%clk 0:03:00.8]} 9... Ne7 {[%clk 0:02:41]}
10. g3 {[%clk 0:03:00.4]} 10... Nc8 {[%clk 0:02:40.7]} 11. Bh3 {[%clk
0:03:00.6]} 11... Qc7 {[%clk 0:02:37.3]} 12. Nf1 {[%clk 0:03:00.7]} 12... Nb6
{[%clk 0:02:37.1]} 13. Bf4 {[%clk 0:02:59.6]} 13... Ba4 {[%clk 0:02:36.5]} 14.
Qe2 {[%clk 0:02:59.5]} 14... Be7 {[%clk 0:02:33.7]} 15. Ne3 {[%clk 0:02:58.6]}
15... h6 {[%clk 0:02:29]} 16. g4 {[%clk 0:02:57.6]} 16... g6 {[%clk 0:02:27.4]}
17. Bg3 {[%clk 0:02:56.4]} 17... Nb3 {[%clk 0:02:21.2]} 18. O-O {[%clk
0:02:54.9]} 18... O-O-O {[%clk 0:02:15.3]} 19. Nh2 {[%clk 0:02:50.6]} 19... Rdg8
{[%clk 0:02:13.5]} 20. f4 {[%clk 0:02:49.1]} 20... Qd8 {[%clk 0:02:13]} 21. Nf3
{[%clk 0:02:44.6]} 21... h5 {[%clk 0:02:09.9]} 22. g5 {[%clk 0:02:34.3]} 22...
Kb8 {[%clk 0:02:06.4]} 23. f5 {[%clk 0:02:32]} 23... gxf5 {[%clk 0:02:04.7]} 24.
Nxf5 {[%clk 0:02:24.2]} 24... exf5 {[%clk 0:02:04.4]} 25. e6+ {[%clk 0:02:24.5]}
25... Bd6 {[%clk 0:02:00.7]} 26. exf7 {[%clk 0:02:18.8]} 26... Rf8 {[%clk
0:01:58.9]} 27. Qh2 {[%clk 0:02:11.9]} 27... Bxg3 {[%clk 0:01:51.1]} 28. Qxg3+
{[%clk 0:02:12.8]} 28... Qc7 {[%clk 0:01:48.1]} 29. Qxc7+ {[%clk 0:02:12]} 29...
Kxc7 {[%clk 0:01:49]} 30. g6 {[%clk 0:02:11.6]} 30... Be8 {[%clk 0:01:42.1]} 31.
g7 {[%clk 0:02:00.7]} 31... Bxf7 {[%clk 0:01:38.9]} 32. gxh8=Q {[%clk
0:01:59.9]} 32... Rxh8 {[%clk 0:01:39.8]} 33. Ne5 {[%clk 0:01:53.3]} 33... Be6
{[%clk 0:01:38.6]} 34. Bxf5 {[%clk 0:01:53]} 34... Bxf5 {[%clk 0:01:37.4]} 35.
Rxf5 {[%clk 0:01:53.9]} 35... Nd2 {[%clk 0:01:33.4]} 36. Re1 {[%clk 0:01:50.7]}
36... Rg8+ {[%clk 0:01:21.8]} 37. Kh2 {[%clk 0:01:49]} 37... Ne4 {[%clk
0:01:06.2]} 38. Rxh5 {[%clk 0:01:48]} 38... Rg7 {[%clk 0:01:00.7]} 39. Rf5
{[%clk 0:01:45.1]} 39... Kd6 {[%clk 0:00:57.9]} 40. Rf6+ {[%clk 0:01:37.7]}
40... Nxf6 {[%clk 0:00:57.3]} 41. Rf1 {[%clk 0:01:33.3]} 41... Ne4 {[%clk
0:00:55.9]} 42. Kh3 {[%clk 0:01:30.8]} 42... Nd7 {[%clk 0:00:54.9]} 43. Nxd7
{[%clk 0:01:29.8]} 43... Kxd7 {[%clk 0:00:55.8]} 44. h5 {[%clk 0:01:30.1]} 44...
Rh7 {[%clk 0:00:54]} 45. Kg4 {[%clk 0:01:26.6]} 45... Rxh5 {[%clk 0:00:45.4]}
46. Rf7+ {[%clk 0:01:24.5]} 46... Ke6 {[%clk 0:00:45.5]} 47. Rxb7 {[%clk
0:01:21.3]} 47... Rh2 {[%clk 0:00:45.3]} 48. Rxa7 {[%clk 0:01:14.8]} 48... Rxb2
{[%clk 0:00:44.7]} 49. Ra6+ {[%clk 0:01:15.5]} 49... Nd6 {[%clk 0:00:44.5]} 50.
a4 {[%clk 0:01:13.6]} 50... Rb3 {[%clk 0:00:44.6]} 51. Rc6 {[%clk 0:01:13.5]}
51... Rxc3 {[%clk 0:00:44.3]} 52. a5 {[%clk 0:01:14.2]} 52... Rd3 {[%clk
0:00:39.1]} 53. a6 {[%clk 0:01:13.3]} 53... Rxd4+ {[%clk 0:00:39.3]} 54. Kg5
{[%clk 0:01:09.6]} 54... Rd2 {[%clk 0:00:39]} 55. a7 {[%clk 0:01:07.7]} 55...
Ra2 {[%clk 0:00:39]} 56. Rc7 {[%clk 0:01:08.4]} 56... Nb5 {[%clk 0:00:38.2]} 57.
Rc6+ {[%clk 0:01:05.4]} 57... Ke5 {[%clk 0:00:38.1]} 0-1

[Event "*** SCC Grand Prix: Titled Tuesday Blitz"]
[Site "Chess.com"]
[Date "2020.08.11"]
[Round "10"]
[White "Yoshikrov"]
[Black "GMJustin"]
[Result "0-1"]
[WhiteElo "2144"]
[BlackElo "2271"]
[TimeControl "180+1"]
[EndTime "11:57:34 PDT"]
[Termination "GMJustin won by resignation"]

1. e4 {[%clk 0:03:00.9]} 1... e5 {[%clk 0:02:47]} 2. Nf3 {[%clk 0:02:59.9]} 2...
Nc6 {[%clk 0:02:47.1]} 3. d4 {[%clk 0:02:59.8]} 3... exd4 {[%clk 0:02:46.3]} 4.
Nxd4 {[%clk 0:02:59.8]} 4... Nf6 {[%clk 0:02:46.4]} 5. Nxc6 {[%clk 0:02:59.2]}
5... bxc6 {[%clk 0:02:45.1]} 6. e5 {[%clk 0:02:58.7]} 6... Qe7 {[%clk
0:02:44.4]} 7. Qe2 {[%clk 0:02:59]} 7... Nd5 {[%clk 0:02:43.6]} 8. c4 {[%clk
0:02:59.3]} 8... Nb6 {[%clk 0:02:41.7]} 9. b3 {[%clk 0:02:52.8]} 9... a5 {[%clk
0:02:30.4]} 10. Ba3 {[%clk 0:02:39.5]} 10... Qg5 {[%clk 0:02:22.8]} 11. Bxf8
{[%clk 0:02:37.7]} 11... Rxf8 {[%clk 0:02:21.9]} 12. a4 {[%clk 0:02:28.6]} 12...
Qc1+ {[%clk 0:02:06.6]} 13. Qd1 {[%clk 0:02:22.8]} 13... Qb2 {[%clk 0:02:03.7]}
14. Nd2 {[%clk 0:02:19]} 14... Qxe5+ {[%clk 0:02:01.2]} 15. Be2 {[%clk
0:02:19.3]} 15... Bb7 {[%clk 0:01:55.9]} 16. O-O {[%clk 0:02:19.3]} 16... O-O-O
{[%clk 0:01:53.4]} 17. Nf3 {[%clk 0:02:18.1]} 17... Qc5 {[%clk 0:01:24]} 18. Qd3
{[%clk 0:01:35.8]} 18... g6 {[%clk 0:01:22.6]} 19. Rac1 {[%clk 0:01:25.3]} 19...
d6 {[%clk 0:01:19.7]} 20. Nd2 {[%clk 0:01:09.2]} 20... Nd7 {[%clk 0:01:16.4]}
21. Ne4 {[%clk 0:01:05.8]} 21... Qe5 {[%clk 0:01:04.8]} 22. f4 {[%clk
0:01:01.7]} 22... Qf5 {[%clk 0:01:00.3]} 23. h3 {[%clk 0:00:42.5]} 23... Rfe8
{[%clk 0:00:42.4]} 24. Rce1 {[%clk 0:00:27.1]} 24... Qxe4 {[%clk 0:00:34.4]} 25.
Qc3 {[%clk 0:00:26.9]} 25... Qe3+ {[%clk 0:00:33.7]} 26. Qxe3 {[%clk 0:00:24.2]}
26... Rxe3 {[%clk 0:00:34.6]} 27. Bg4 {[%clk 0:00:24.4]} 27... Rxe1 {[%clk
0:00:27.6]} 28. Rxe1 {[%clk 0:00:25.3]} 28... f5 {[%clk 0:00:27.7]} 29. Be2
{[%clk 0:00:24]} 29... Re8 {[%clk 0:00:25]} 30. Kf2 {[%clk 0:00:24.3]} 30... Nc5
{[%clk 0:00:23.9]} 31. Rd1 {[%clk 0:00:24.5]} 31... Nxb3 {[%clk 0:00:21.9]} 0-1

[Event "*** SCC Grand Prix: Titled Tuesday Blitz"]
[Site "Chess.com"]
[Date "2020.08.11"]
[Round "10"]
[White "ENEASZ"]
[Black "mortngabriel"]
[Result "1/2-1/2"]
[WhiteElo "2568"]
[BlackElo "2464"]
[TimeControl "180+1"]
[EndTime "11:57:35 PDT"]
[Termination "Game drawn - insufficient material"]

1. e4 {[%clk 0:03:00.9]} 1... g6 {[%clk 0:03:00.4]} 2. d4 {[%clk 0:02:53.7]}
2... Bg7 {[%clk 0:03:00.1]} 3. Nc3 {[%clk 0:02:54.3]} 3... a6 {[%clk 0:02:57.5]}
4. f4 {[%clk 0:02:52.3]} 4... b5 {[%clk 0:02:57.4]} 5. Nf3 {[%clk 0:02:46]} 5...
Bb7 {[%clk 0:02:55.5]} 6. Bd3 {[%clk 0:02:44]} 6... d6 {[%clk 0:02:52.5]} 7. O-O
{[%clk 0:02:43.6]} 7... Nd7 {[%clk 0:02:50.9]} 8. e5 {[%clk 0:02:43.9]} 8... c5
{[%clk 0:02:45.6]} 9. dxc5 {[%clk 0:02:37.2]} 9... Nxc5 {[%clk 0:02:43]} 10. Be3
{[%clk 0:02:31.3]} 10... Nxd3 {[%clk 0:02:39.3]} 11. Qxd3 {[%clk 0:02:29.3]}
11... dxe5 {[%clk 0:02:29.6]} 12. Qxd8+ {[%clk 0:02:30.2]} 12... Rxd8 {[%clk
0:02:29.3]} 13. Nxe5 {[%clk 0:02:31.1]} 13... Nf6 {[%clk 0:02:23.5]} 14. Bc5
{[%clk 0:02:17.9]} 14... Nd7 {[%clk 0:02:17.8]} 15. Nxd7 {[%clk 0:02:11.9]}
15... Rxd7 {[%clk 0:02:17.4]} 16. Rfe1 {[%clk 0:02:12.2]} 16... e6 {[%clk
0:02:04.9]} 17. Rad1 {[%clk 0:02:09]} 17... Kd8 {[%clk 0:01:36.5]} 18. Rxd7+
{[%clk 0:01:57.9]} 18... Kxd7 {[%clk 0:01:36.3]} 19. Rd1+ {[%clk 0:01:58.8]}
19... Kc7 {[%clk 0:01:29.4]} 20. Bd4 {[%clk 0:01:59.7]} 20... Bxd4+ {[%clk
0:01:09.6]} 21. Rxd4 {[%clk 0:02:00.6]} 21... Rd8 {[%clk 0:01:07.9]} 22. Rxd8
{[%clk 0:01:58.7]} 22... Kxd8 {[%clk 0:01:08.8]} 23. a3 {[%clk 0:01:59.1]} 23...
Kc7 {[%clk 0:01:06.8]} 24. Kf2 {[%clk 0:01:59.2]} 24... Kd6 {[%clk 0:01:07.1]}
25. g3 {[%clk 0:01:59.4]} 25... Kc5 {[%clk 0:01:04.4]} 26. Ke3 {[%clk
0:01:59.9]} 26... Kc4 {[%clk 0:00:55.5]} 27. Ne2 {[%clk 0:01:56.5]} 27... a5
{[%clk 0:00:51.3]} 28. b3+ {[%clk 0:01:46.5]} 28... Kc5 {[%clk 0:00:50.5]} 29.
Kd3 {[%clk 0:01:47.4]} 29... b4 {[%clk 0:00:41.5]} 30. axb4+ {[%clk 0:01:48.3]}
30... axb4 {[%clk 0:00:42.4]} 31. c3 {[%clk 0:01:48.4]} 31... Ba6+ {[%clk
0:00:39.6]} 32. c4 {[%clk 0:01:48.7]} 32... f6 {[%clk 0:00:27.7]} 33. Ke3 {[%clk
0:01:48.6]} 33... Bxc4 {[%clk 0:00:06.7]} 34. bxc4 {[%clk 0:01:47.5]} 34... Kxc4
{[%clk 0:00:07.6]} 35. Kd2 {[%clk 0:01:30.6]} 35... e5 {[%clk 0:00:07]} 36. fxe5
{[%clk 0:01:31.5]} 36... fxe5 {[%clk 0:00:07.6]} 37. Kc2 {[%clk 0:01:27.1]}
37... e4 {[%clk 0:00:06.7]} 38. h4 {[%clk 0:01:21.6]} 38... e3 {[%clk
0:00:06.4]} 39. Nf4 {[%clk 0:01:10.9]} 39... Kd4 {[%clk 0:00:04.4]} 40. Kb3
{[%clk 0:01:11.4]} 40... Ke4 {[%clk 0:00:03.6]} 41. Kxb4 {[%clk 0:01:11.5]}
41... Kf3 {[%clk 0:00:03.9]} 42. Kc3 {[%clk 0:01:06.5]} 42... Kxg3 {[%clk
0:00:03.7]} 43. Ne2+ {[%clk 0:01:04.5]} 43... Kxh4 {[%clk 0:00:03.7]} 44. Kd3
{[%clk 0:01:05.4]} 44... g5 {[%clk 0:00:02.1]} 45. Kxe3 {[%clk 0:01:06.3]} 45...
h5 {[%clk 0:00:02.9]} 46. Kf2 {[%clk 0:01:06.7]} 46... Kg4 {[%clk 0:00:02.8]}
47. Kg2 {[%clk 0:01:05.9]} 47... h4 {[%clk 0:00:03]} 48. Nd4 {[%clk 0:01:04.5]}
48... h3+ {[%clk 0:00:02.3]} 49. Kh2 {[%clk 0:01:04.5]} 49... Kh4 {[%clk
0:00:03.2]} 50. Nf3+ {[%clk 0:01:04]} 50... Kg4 {[%clk 0:00:03.5]} 51. Nxg5
{[%clk 0:01:04.9]} 51... Kxg5 {[%clk 0:00:04.3]} 52. Kxh3 {[%clk 0:01:05.8]}
1/2-1/2